fUST/lending_fUST_20250729
["ID","MTS","AMOUNT","RATE_DAILY","PERIOD"]
[375760870,1753732253613,-500.38,0.00023561,2]
[375760871,1753732253622,-904.77,0.00023561,2]
[375760872,1753732253631,-460.0,0.00023561,2]
[375760873,1753732253641,-710.73,0.00023561,2]
[375760874,1753732253650,-460.0,0.00023561,2]
[375760875,1753732253660,-1387.64,0.00023561,2]
[375760876,1753732253670,-645.56,0.00023561,2]
[375760877,1753732253679,-460.0,0.00023561,2]
[375760878,1753732253689,-638.13,0.00023561,2]
[375760879,1753732253698,-1212.3,0.00023606,5]
[375760880,1753732253708,-450.65927519,0.00023616,2]
[375760881,1753732253718,-150.0,0.00023656,2]
[375760882,1753732253728,-754.31,0.00023678,2]
[375760883,1753732253737,-298.04,0.0002371,2]
[375760884,1753732253747,-1000.0,0.00023773,5]
[375760885,1753732253756,-754.31,0.00023778,4]
[375760886,1753732253766,-165.92139603,0.00023781,2]
[375760887,1753732253776,-164.81180196,0.00023781,2]
[375760888,1753732253786,-250.0,0.00023789,2]
[375760889,1753732253797,-2200.0,0.00023792,2]
[375760890,1753732253807,-951.44,0.00023835,2]
[375760891,1753732253817,-670.97,0.00023835,2]
[375760892,1753732253828,-475.44,0.00023835,2]
[375760893,1753732253838,-460.0,0.00023835,2]
[375760894,1753732253848,-578.46,0.00023835,2]
[375760895,1753732253857,-4776.13,0.00023835,2]
[375760896,1753732253867,-2556.15,0.00023835,2]
[375760897,1753732253876,-541.14,0.00023835,2]
[375760898,1753732253886,-542.76,0.00023835,2]
[375760899,1753732253896,-1757.55,0.00023835,2]
[375760900,1753732253905,-460.0,0.00023835,2]
[375760901,1753732253915,-1037.93,0.00023835,2]
[375760902,1753732253925,-460.0,0.00023835,2]
[375760903,1753732253934,-505.23,0.00023835,2]
[375760904,1753732253943,-3430.45,0.00023835,2]
[375760905,1753732253953,-622.29,0.00023835,2]
[375760906,1753732253962,-460.0,0.00023835,2]
[375760907,1753732253971,-473.2,0.00023835,2]
[375760908,1753732253981,-930.17,0.00023835,2]
[375760909,1753732253991,-460.0,0.00023835,2]
[375760910,1753732254001,-219.28337341,0.00023835,2]
[375760911,1753732254011,-738.4,0.00023835,2]
[375760912,1753732254020,-460.0,0.00023835,2]
[375760913,1753732254030,-3165.1,0.00023835,2]
[375760914,1753732254041,-460.0,0.00023835,2]
[375760915,1753732254052,-1490.83,0.00023835,2]
[375760916,1753732254061,-460.0,0.00023835,2]
[375760917,1753732254071,-483.33,0.00023835,2]
[375760918,1753732254080,-2025.5,0.00023835,2]
[375760919,1753732254091,-1649.51,0.00023835,2]
[375760920,1753732254101,-500.38,0.00023835,2]
[375760921,1753732254111,-904.77,0.00023835,2]
[375760922,1753732254121,-460.0,0.00023835,2]
[375760923,1753732254131,-710.73,0.00023835,2]
[375760924,1753732254140,-460.0,0.00023835,2]
[375760925,1753732254150,-1387.64,0.00023835,2]
[375760926,1753732254160,-645.56,0.00023835,2]
[375760927,1753732254169,-460.0,0.00023835,2]
[375760928,1753732254178,-638.13,0.00023835,2]
[375760929,1753732254188,-660.0,0.00023853,2]
[375760930,1753732254198,-158.348141,0.00023876,4]
[375760931,1753732254208,-754.31,0.00023878,3]
[375760932,1753732254217,-2060.12,0.00023884,2]
[375760933,1753732254227,-405.61787021,0.000239,2]
[375760934,1753732254237,-153.0,0.00023945,2]
[375760935,1753732254247,-578.0900773,0.00023945,2]
[375760936,1753732254256,-578.0900773,0.00023945,2]
[375760937,1753732254266,-153.0,0.00023945,2]
[375760938,1753732254276,-153.0,0.00023945,2]
[375760939,1753732254286,-575.9134983,0.00023945,2]
[375760940,1753732254297,-153.0,0.00023945,2]
[375760941,1753732254306,-153.0,0.00023945,2]
[375760942,1753732254316,-153.0,0.00023945,2]
[375760943,1753732254326,-153.0,0.00023945,2]
[375760944,1753732254337,-153.0,0.00023945,2]
[375760945,1753732254346,-153.0,0.00023945,2]
[375760946,1753732254356,-153.0,0.00023945,2]
[375760947,1753732254365,-754.31,0.00023978,2]
[375760948,1753732254374,-4338.21355073,0.00024,3]
[375760949,1753732254384,-160.0,0.00024,7]
[375760950,1753732254393,-160.16142507,0.00024,2]
[375760951,1753732254403,-454.50895927,0.00024,2]
[375760952,1753732254412,-160.0,0.00024,7]
[375760953,1753732254421,-160.0,0.00024,7]
[375760954,1753732254430,-216.06083566,0.00024,7]
[375760955,1753732254439,-526.58819812,0.00024,7]
[375760956,1753732254449,-840.90880427,0.00024,7]
[375760957,1753732254458,-160.0,0.00024,7]
[375760958,1753732254467,-231.34820253,0.00024,7]
[375760959,1753732254477,-4863.78450334,0.00024009,2]
[375760960,1753732254487,-1212.3,0.00024034,6]
[375760961,1753732254497,-807.0,0.00024046,2]
[375760962,1753732254506,-754.31,0.00024078,5]
[375760963,1753732254516,-951.44,0.00024109,2]
[375760964,1753732254525,-670.97,0.00024109,2]
[375760965,1753732254535,-475.44,0.00024109,2]
[375760966,1753732254544,-399.61,0.00024109,2]
[375760967,1753732254554,-578.46,0.00024109,2]
[375760968,1753732254564,-4776.13,0.00024109,2]
[375760969,1753732254573,-2556.15,0.00024109,2]
[375760970,1753732254582,-541.14,0.00024109,2]
[375760971,1753732254592,-542.76,0.00024109,2]
[375760972,1753732254602,-1757.55,0.00024109,2]
[375760973,1753732254612,-365.5,0.00024109,2]
[375760974,1753732254621,-1037.93,0.00024109,2]
[375760975,1753732254630,-460.0,0.00024109,2]
[375760976,1753732254640,-505.23,0.00024109,2]
[375760977,1753732254649,-3430.45,0.00024109,2]
[375760978,1753732254659,-622.29,0.00024109,2]
[375760979,1753732254668,-460.0,0.00024109,2]
[375760980,1753732254678,-473.2,0.00024109,2]
[375760981,1753732254688,-930.17,0.00024109,2]
[375760982,1753732254698,-460.0,0.00024109,2]
[375760983,1753732254708,-738.4,0.00024109,2]
[375760984,1753732254717,-460.0,0.00024109,2]
[375760985,1753732254727,-3165.1,0.00024109,2]
[375760986,1753732254737,-460.0,0.00024109,2]
[375760987,1753732254747,-1490.83,0.00024109,2]
[375760988,1753732254757,-460.0,0.00024109,2]
[375760989,1753732254767,-483.33,0.00024109,2]
[375760990,1753732254776,-2025.5,0.00024109,2]
[375760991,1753732254786,-1649.51,0.00024109,2]
[375760992,1753732254796,-500.38,0.00024109,2]
[375760993,1753732254806,-904.77,0.00024109,2]
[375760994,1753732254815,-460.0,0.00024109,2]
[375760995,1753732254825,-710.73,0.00024109,2]
[375760996,1753732254834,-460.0,0.00024109,2]
[375760997,1753732254844,-1387.64,0.00024109,2]
[375760998,1753732254855,-645.56,0.00024109,2]
[375760999,1753732254865,-460.0,0.00024109,2]
[375761000,1753732254874,-638.13,0.00024109,2]
[375761001,1753732254884,-165.92139603,0.0002411,2]
[375761002,1753732254894,-164.81180196,0.0002411,2]
[375761003,1753732254903,-500.0,0.00024113,2]
[375761004,1753732254913,-500.0,0.00024157,2]
[375761005,1753732254923,-807.0,0.00024164,2]
[375761006,1753732254932,-807.0,0.00024165,2]
[375761007,1753732254942,-800.0,0.00024169,2]
[375761008,1753732254951,-500.0,0.00024171,2]
[375761009,1753732254960,-500.0,0.00024178,2]
[375761010,1753732254970,-754.31,0.00024178,7]
[375761011,1753732254979,-807.0,0.00024192,2]
[375761012,1753732254988,-12634.73134317,0.000242,7]
[375761013,1753732254998,-526.58819812,0.000242,7]
[375761014,1753732255007,-312.16666667,0.000242,7]
[375761015,1753732255017,-807.0,0.00024204,2]
[375761016,1753732255026,-277.65956685,0.00024223,2]
[375761017,1753732255036,-807.0,0.00024232,2]
[375761018,1753732255050,-500.0,0.00024233,2]
[375761019,1753732255059,-410.96699626,0.00024246,2]
[375761020,1753732255069,-807.0,0.0002425,2]
[375761021,1753732255079,-4863.78450328,0.00024266,2]
[375761022,1753732255089,-754.31,0.00024278,2]
[375761023,1753732255098,-500.0,0.00024297,2]
[375761024,1753732255108,-12253.1,0.000243,7]
[375761025,1753732255118,-3217.67,0.000243,7]
[375761026,1753732255128,-45186.03,0.000243,2]
[375761027,1753732255138,-807.0,0.0002433,2]
[375761028,1753732255147,-500.0,0.00024349,2]
[375761029,1753732255156,-500.0,0.00024361,2]
[375761030,1753732255165,-754.31,0.00024378,6]
[375761031,1753732255175,-951.44,0.00024383,2]
[375761032,1753732255184,-670.97,0.00024383,2]
[375761033,1753732255194,-475.44,0.00024383,2]
[375761034,1753732255203,-578.46,0.00024383,2]
[375761035,1753732255213,-4776.13,0.00024383,2]
[375761036,1753732255222,-2556.15,0.00024383,2]
[375761037,1753732255232,-541.14,0.00024383,2]
[375761038,1753732255242,-542.76,0.00024383,2]
[375761039,1753732255252,-1757.55,0.00024383,2]
[375761040,1753732255261,-1037.93,0.00024383,2]
[375761041,1753732255271,-161.99,0.00024383,2]
[375761042,1753732255281,-505.23,0.00024383,2]
[375761043,1753732255291,-3430.45,0.00024383,2]
[375761044,1753732255300,-622.29,0.00024383,2]
[375761045,1753732255309,-460.0,0.00024383,2]
[375761046,1753732255319,-473.2,0.00024383,2]
[375761047,1753732255329,-930.17,0.00024383,2]
[375761048,1753732255338,-460.0,0.00024383,2]
[375761049,1753732255348,-738.4,0.00024383,2]
[375761050,1753732255358,-460.0,0.00024383,2]
[375761051,1753732255369,-3165.1,0.00024383,2]
[375761052,1753732255379,-301.96,0.00024383,2]
[375761053,1753732255388,-1490.83,0.00024383,2]
[375761054,1753732255398,-460.0,0.00024383,2]
[375761055,1753732255407,-483.33,0.00024383,2]
[375761056,1753732255417,-2025.5,0.00024383,2]
[375761057,1753732255427,-1649.51,0.00024383,2]
[375761058,1753732255436,-500.38,0.00024383,2]
[375761059,1753732255446,-904.77,0.00024383,2]
[375761060,1753732255456,-151.0,0.00024383,7]
[375761061,1753732255466,-460.0,0.00024383,2]
[375761062,1753732255477,-710.73,0.00024383,2]
[375761063,1753732255487,-460.0,0.00024383,2]
[375761064,1753732255496,-1387.64,0.00024383,2]
[375761065,1753732255506,-645.56,0.00024383,2]
[375761066,1753732255516,-151.0,0.00024383,7]
[375761067,1753732255525,-303.4,0.00024383,2]
[375761068,1753732255535,-638.13,0.00024383,2]
[375761069,1753732255544,-500.0,0.00024386,2]
[375761070,1753732255554,-1238.09,0.000244,7]
[375761071,1753732255565,-643.0,0.000244,2]
[375761072,1753732255575,-760.0,0.00024401,2]
[375761073,1753732255585,-500.0,0.00024431,2]
[375761074,1753732255596,-807.0,0.00024454,2]
[375761075,1753732255724,-158.348141,0.0002446,5]
[375761076,1753732255734,-1212.3,0.00024463,6]
[375761077,1753732255743,-754.31,0.00024478,7]
[375761078,1753732255753,-500.0,0.00024484,2]
[375761079,1753732255763,-807.0,0.00024499,2]
[375761080,1753732255772,-2005.94100931,0.000245,3]
[375761081,1753732255781,-1177.0,0.000245,30]
[375761082,1753732255790,-35070.42772119,0.000245,10]
[375761083,1753732255799,-966.54586535,0.000245,7]
[375761084,1753732255808,-160.0,0.000245,3]
[375761085,1753732255817,-160.0,0.000245,3]
[375761086,1753732255826,-160.0,0.000245,3]
[375761087,1753732255836,-160.0,0.000245,10]
[375761088,1753732255846,-160.0,0.000245,3]
[375761089,1753732255855,-151.0,0.000245,7]
[375761090,1753732255864,-454.6043428,0.000245,3]
[375761091,1753732255873,-214.87999826,0.000245,3]
[375761092,1753732255883,-214.87999826,0.000245,10]
[375761093,1753732255893,-160.0,0.000245,3]
[375761094,1753732255902,-12634.73134317,0.000245,3]
[375761095,1753732255912,-12634.73134317,0.000245,10]
[375761096,1753732255921,-151.0,0.000245,7]
[375761097,1753732255931,-216.06083566,0.000245,3]
[375761098,1753732255941,-216.06083566,0.000245,10]
[375761099,1753732255950,-151.0,0.000245,7]
[375761100,1753732255959,-526.58819812,0.000245,3]
[375761101,1753732255969,-526.58819812,0.000245,10]
[375761102,1753732255978,-840.90880427,0.000245,3]
[375761103,1753732255988,-840.90880427,0.000245,10]
[375761104,1753732255998,-160.0,0.000245,3]
[375761105,1753732256006,-160.0,0.000245,10]
[375761106,1753732256016,-231.34820253,0.000245,3]
[375761107,1753732256025,-231.34820253,0.000245,10]
[375761108,1753732256034,-312.16666667,0.000245,3]
[375761109,1753732256048,-312.16666667,0.000245,10]
[375761110,1753732256057,-500.0,0.00024502,2]
[375761111,1753732256068,-430.064903,0.00024521,2]
[375761112,1753732256078,-430.064903,0.00024521,2]
[375761113,1753732256087,-430.064903,0.00024521,2]
[375761114,1753732256096,-4863.78450328,0.00024523,2]
[375761115,1753732256107,-158.348141,0.00024538,2]
[375761116,1753732256118,-500.0,0.00024548,2]
[375761117,1753732256127,-754.31,0.00024578,6]
[375761118,1753732256135,-1744.487098,0.0002462,5]
[375761119,1753732256145,-807.0,0.00024621,2]
[375761120,1753732256154,-800.0,0.00024621,2]
[375761121,1753732256163,-1000.0,0.0002464,5]
[375761122,1753732256172,-812.75693972,0.00024642,2]
[375761123,1753732256181,-154.51709,0.00024657,7]
[375761124,1753732256190,-154.51709,0.00024657,7]
[375761125,1753732256199,-951.44,0.00024657,2]
[375761126,1753732256208,-670.97,0.00024657,2]
[375761127,1753732256217,-475.44,0.00024657,2]
[375761128,1753732256227,-578.46,0.00024657,2]
[375761129,1753732256235,-4776.13,0.00024657,2]
[375761130,1753732256244,-2556.15,0.00024657,2]
[375761131,1753732256254,-541.14,0.00024657,2]
[375761132,1753732256263,-542.76,0.00024657,2]
[375761133,1753732256273,-1757.55,0.00024657,2]
[375761134,1753732256282,-1037.93,0.00024657,2]
[375761135,1753732256291,-505.23,0.00024657,2]
[375761136,1753732256301,-3430.45,0.00024657,2]
[375761137,1753732256310,-622.29,0.00024657,2]
[375761138,1753732256319,-434.43,0.00024657,2]
[375761139,1753732256328,-473.2,0.00024657,2]
[375761140,1753732256337,-930.17,0.00024657,2]
[375761141,1753732256347,-460.0,0.00024657,2]
[375761142,1753732256357,-738.4,0.00024657,2]
[375761143,1753732256366,-369.48,0.00024657,2]
[375761144,1753732256375,-3165.1,0.00024657,2]
[375761145,1753732256384,-1490.83,0.00024657,2]
[375761146,1753732256393,-460.0,0.00024657,2]
[375761147,1753732256402,-483.33,0.00024657,2]
[375761148,1753732256412,-2025.5,0.00024657,2]
[375761149,1753732256421,-1649.51,0.00024657,2]
[375761150,1753732256431,-500.38,0.00024657,2]
[375761151,1753732256440,-904.77,0.00024657,2]
[375761152,1753732256449,-460.0,0.00024657,2]
[375761153,1753732256458,-710.73,0.00024657,2]
[375761154,1753732256468,-460.0,0.00024657,2]
[375761155,1753732256477,-1387.64,0.00024657,2]
[375761156,1753732256487,-645.56,0.00024657,2]
[375761157,1753732256496,-338.93117137,0.00024658,2]
[375761158,1753732256506,-500.0,0.00024658,2]
[375761159,1753732256515,-807.0,0.00024658,2]
[375761160,1753732256524,-1000.0,0.0002466,5]
[375761161,1753732256534,-754.31,0.00024678,7]
[375761162,1753732256542,-1000.0,0.0002468,5]
[375761163,1753732256551,-480.0,0.00024698,2]
[375761164,1753732256560,-1000.0,0.000247,5]
[375761165,1753732256571,-11140.64501356,0.000247,2]
[375761166,1753732256580,-1000.0,0.0002472,5]
[375761167,1753732256589,-606.20403225,0.00024723,2]
[375761168,1753732256598,-1000.0,0.0002474,5]
[375761169,1753732256608,-158.348141,0.00024743,5]
[375761170,1753732256617,-500.0,0.0002475,5]
[375761171,1753732256630,-807.0,0.00024754,2]
[375761172,1753732256639,-1000.0,0.0002476,5]
[375761173,1753732256650,-151.70253836,0.00024765,2]
[375761174,1753732256661,-153.0,0.00024767,2]
[375761175,1753732256671,-153.0,0.00024767,2]
[375761176,1753732256681,-153.0,0.00024767,2]
[375761177,1753732256692,-754.31,0.00024778,6]
[375761178,1753732256701,-1000.0,0.0002478,5]
[375761179,1753732256711,-4863.78450328,0.0002478,2]
[375761180,1753732256720,-4357.80695484,0.00024788,2]
[375761181,1753732256730,-160.0754546,0.00024795,2]
[375761182,1753732256739,-2000.0,0.000248,2]
[375761183,1753732256749,-2000.0,0.000248,2]
[375761184,1753732256759,-2000.0,0.000248,2]
[375761185,1753732256768,-2000.0,0.000248,2]
[375761186,1753732256778,-19490.99339857,0.000248,2]
[375761187,1753732256788,-69448.35278892,0.000248,7]
[375761188,1753732256798,-151.0,0.000248,7]
[375761189,1753732256808,-321.791194,0.000248,7]
[375761190,1753732256819,-321.791194,0.000248,7]
[375761191,1753732256829,-1000.0,0.000248,5]
[375761192,1753732256838,-252.58279,0.000248,7]
[375761193,1753732256849,-151.0,0.000248,7]
[375761194,1753732256859,-151.0,0.000248,7]
[375761195,1753732256869,-151.0,0.000248,7]
[375761196,1753732256878,-151.0,0.000248,7]
[375761197,1753732256888,-151.0,0.000248,7]
[375761198,1753732256898,-24604.1407494,0.000248,2]
[375761199,1753732256908,-151.0,0.000248,7]
[375761200,1753732256918,-526.58819812,0.000248,7]
[375761201,1753732256928,-151.0,0.000248,7]
[375761202,1753732256937,-151.0,0.000248,7]
[375761203,1753732256946,-312.16666667,0.000248,7]
[375761204,1753732256955,-158.348141,0.00024815,4]
[375761205,1753732256965,-500.0,0.00024837,2]
[375761206,1753732256975,-150.0,0.0002486,2]
[375761207,1753732256984,-807.0,0.0002486,2]
[375761208,1753732256993,-807.0,0.00024864,2]
[375761209,1753732257003,-754.31,0.00024878,3]
[375761210,1753732257012,-522.34043315,0.0002489,2]
[375761211,1753732257021,-807.0,0.00024891,2]
[375761212,1753732257031,-1212.3,0.00024892,6]
[375761213,1753732257042,-3089.69237493,0.000249,2]
[375761214,1753732257052,-154.51709,0.000249,7]
[375761215,1753732257061,-154.51709,0.000249,7]
[375761216,1753732257070,-152.082918,0.000249,7]
[375761217,1753732257080,-321.791194,0.000249,7]
[375761218,1753732257090,-321.791194,0.000249,7]
[375761219,1753732257100,-151.0,0.000249,7]
[375761220,1753732257110,-151.0,0.000249,7]
[375761221,1753732257120,-151.0,0.000249,7]
[375761222,1753732257130,-151.0,0.000249,7]
[375761223,1753732257139,-151.0,0.000249,7]
[375761224,1753732257149,-151.0,0.000249,7]
[375761225,1753732257158,-578.285103,0.000249,7]
[375761226,1753732257167,-578.285103,0.000249,7]
[375761227,1753732257177,-151.0,0.000249,7]
[375761228,1753732257186,-151.398652,0.000249,7]
[375761229,1753732257196,-151.0,0.000249,7]
[375761230,1753732257206,-152.837831,0.000249,7]
[375761231,1753732257215,-151.0,0.000249,7]
[375761232,1753732257224,-1060.592493,0.000249,7]
[375761233,1753732257234,-1060.592493,0.000249,7]
[375761234,1753732257244,-1268.374352,0.000249,7]
[375761235,1753732257254,-268.814187,0.000249,7]
[375761236,1753732257263,-1268.374352,0.000249,7]
[375761237,1753732257272,-268.814187,0.000249,7]
[375761238,1753732257281,-151.0,0.000249,7]
[375761239,1753732257291,-151.0,0.000249,7]
[375761240,1753732257300,-151.0,0.000249,7]
[375761241,1753732257310,-151.0,0.000249,7]
[375761242,1753732257320,-151.0,0.000249,7]
[375761243,1753732257330,-151.0,0.000249,7]
[375761244,1753732257340,-151.0,0.000249,7]
[375761245,1753732257350,-151.0,0.000249,7]
[375761246,1753732257360,-490.225082,0.000249,7]
[375761247,1753732257370,-151.0,0.000249,7]
[375761248,1753732257380,-490.225082,0.000249,7]
[375761249,1753732257389,-151.0,0.000249,7]
[375761250,1753732257399,-151.0,0.000249,7]
[375761251,1753732257410,-661532.535973,0.000249,2]
[375761252,1753732257419,-151.0,0.000249,7]
[375761253,1753732257431,-151.0,0.000249,7]
[375761254,1753732257440,-151.0,0.000249,7]
[375761255,1753732257450,-151.0,0.000249,7]
[375761256,1753732257460,-151.0,0.000249,7]
[375761257,1753732257469,-151.0,0.000249,7]
[375761258,1753732257479,-807.0,0.00024903,2]
[375761259,1753732257489,-951.44,0.00024931,2]
[375761260,1753732257499,-670.97,0.00024931,2]
[375761261,1753732257509,-475.44,0.00024931,2]
[375761262,1753732257518,-578.46,0.00024931,2]
[375761263,1753732257528,-4776.13,0.00024931,2]
[375761264,1753732257538,-2556.15,0.00024931,2]
[375761265,1753732257549,-541.14,0.00024931,2]
[375761266,1753732257558,-542.76,0.00024931,2]
[375761267,1753732257568,-1757.55,0.00024931,2]
[375761268,1753732257578,-1037.93,0.00024931,2]
[375761269,1753732257588,-505.23,0.00024931,2]
[375761270,1753732257597,-3430.45,0.00024931,2]
[375761271,1753732257609,-622.29,0.00024931,2]
[375761272,1753732257619,-473.2,0.00024931,2]
[375761273,1753732257629,-930.17,0.00024931,2]
[375761274,1753732257638,-460.0,0.00024931,2]
[375761275,1753732257648,-738.4,0.00024931,2]
[375761276,1753732257657,-3165.1,0.00024931,2]
[375761277,1753732257667,-1490.83,0.00024931,2]
[375761278,1753732257676,-584.43,0.00024931,2]
[375761279,1753732257686,-483.33,0.00024931,2]
[375761280,1753732257696,-2025.5,0.00024931,2]
[375761281,1753732257706,-1649.51,0.00024931,2]
[375761282,1753732257715,-500.38,0.00024931,2]
[375761283,1753732257724,-904.77,0.00024931,2]
[375761284,1753732257734,-460.0,0.00024931,2]
[375761285,1753732257743,-710.73,0.00024931,2]
[375761286,1753732257753,-460.0,0.00024931,2]
[375761287,1753732257762,-1387.64,0.00024931,2]
[375761288,1753732257772,-645.56,0.00024931,2]
[375761289,1753732257782,-807.0,0.00024936,2]
[375761290,1753732257792,-500.0,0.00024942,2]
[375761291,1753732257802,-860.0,0.00024949,2]
[375761292,1753732257812,-207.0,0.0002495,12]
[375761293,1753732257821,-500.0,0.00024952,2]
[375761294,1753732257831,-500.0,0.00024976,2]
[375761295,1753732257840,-754.31,0.00024978,4]
[375761296,1753732257850,-1131.957548,0.0002498,5]
[375761297,1753732257861,-500.0,0.00024997,2]
[375761298,1753732257873,-150.99999955,0.00025,5]
[375761299,1753732257882,-158.348141,0.00025,14]
[375761300,1753732257892,-1000.0,0.00025,5]
[375761301,1753732257902,-526.58819812,0.00025,10]
[375761302,1753732257912,-312.16666667,0.00025,10]
[375761303,1753732257922,-807.0,0.00025001,2]
[375761304,1753732257931,-158.348141,0.00025026,5]
[375761305,1753732257941,-4863.78450328,0.00025037,2]
[375761306,1753732257950,-811.43970814,0.0002504,2]
[375761307,1753732257960,-754.31,0.00025078,5]
[375761308,1753732257969,-183.72488545,0.00025105,2]
[375761309,1753732257979,-500.0,0.00025133,2]
[375761310,1753732257989,-500.0,0.00025146,2]
[375761311,1753732257998,-754.31,0.00025178,4]
[375761312,1753732258007,-721.0889924,0.000252,2]
[375761313,1753732258017,-527.38510709,0.000252,7]
[375761314,1753732258026,-951.44,0.00025205,2]
[375761315,1753732258035,-670.97,0.00025205,2]
[375761316,1753732258049,-475.44,0.00025205,2]
[375761317,1753732258058,-578.46,0.00025205,2]
[375761318,1753732258068,-4776.13,0.00025205,2]
[375761319,1753732258079,-2556.15,0.00025205,2]
[375761320,1753732258088,-541.14,0.00025205,2]
[375761321,1753732258097,-542.76,0.00025205,2]
[375761322,1753732258108,-1757.55,0.00025205,2]
[375761323,1753732258118,-505.23,0.00025205,2]
[375761324,1753732258127,-3430.45,0.00025205,2]
[375761325,1753732258136,-622.29,0.00025205,2]
[375761326,1753732258146,-473.2,0.00025205,2]
[375761327,1753732258156,-930.17,0.00025205,2]
[375761328,1753732258165,-460.0,0.00025205,2]
[375761329,1753732258174,-738.4,0.00025205,2]
[375761330,1753732258184,-3165.1,0.00025205,2]
[375761331,1753732258194,-1490.83,0.00025205,2]
[375761332,1753732258203,-483.33,0.00025205,2]
[375761333,1753732258213,-2025.5,0.00025205,2]
[375761334,1753732258223,-1649.51,0.00025205,2]
[375761335,1753732258233,-500.38,0.00025205,2]
[375761336,1753732258243,-904.77,0.00025205,2]
[375761337,1753732258254,-434.06559774,0.00025205,2]
[375761338,1753732258265,-710.73,0.00025205,2]
[375761339,1753732258275,-224.56,0.00025205,2]
[375761340,1753732258288,-1387.64,0.00025205,2]
[375761341,1753732258306,-645.56,0.00025205,2]
[375761342,1753732258327,-500.0,0.00025212,2]
[375761343,1753732258337,-500.0,0.00025232,2]
[375761344,1753732258346,-500.0,0.00025232,2]
[375761345,1753732258356,-500.0,0.00025233,2]
[375761346,1753732258366,-727.116321,0.00025234,2]
[375761347,1753732258375,-158.348141,0.00025245,14]
[375761348,1753732258385,-754.31,0.00025278,5]
[375761349,1753732258395,-4863.78450328,0.00025294,2]
[375761350,1753732258405,-500.0,0.00025298,2]
[375761351,1753732258414,-158.348141,0.00025309,5]
[375761352,1753732258423,-1212.3,0.0002532,7]
[375761353,1753732258432,-500.0,0.00025343,2]
[375761354,1753732258441,-500.0,0.00025357,2]
[375761355,1753732258451,-500.0,0.00025373,2]
[375761356,1753732258459,-754.31,0.00025378,5]
[375761357,1753732258469,-12253.1,0.000254,7]
[375761358,1753732258585,-3217.67,0.000254,7]
[375761359,1753732258595,-45186.03,0.000254,2]
[375761360,1753732258606,-807.0,0.00025429,2]
[375761361,1753732258616,-500.0,0.00025472,2]
[375761362,1753732258625,-754.31,0.00025478,7]
[375761363,1753732258634,-951.48935271,0.00025479,2]
[375761364,1753732258643,-671.06,0.00025479,2]
[375761365,1753732258653,-475.63,0.00025479,2]
[375761366,1753732258662,-846.1870342,0.00025479,2]
[375761367,1753732258674,-3384.74813678,0.00025479,2]
[375761368,1753732258684,-7608.06762445,0.00025479,2]
[375761369,1753732258693,-578.69,0.00025479,2]